bitfinex/quotes_ETHUSD_20250318
["timestamp","ask_amount","ask_price","bid_price","bid_amount"]
[1742303399646,10.71163537,1901.2,1901.1,5.26011]
[1742303399850,4.69163537,1901.2,1901.1,5.26011]
[1742303400351,0.5353,1901.8,1901.7,5.25834]
[1742303400550,5.4893,1901.8,1901.7,5.25834]
[1742303400781,13.18093537,1901.8,1901.7,5.25834]
[1742303401480,13.43794999,1901.8,1901.7,5.25834]
[1742303401785,3.0,1901.7,1901.6,5.25861]
[1742303403564,3.39363744,1901.7,1901.6,5.25861]
[1742303404481,8.08527281,1901.7,1901.6,5.25861]
[1742303404881,5.08527281,1901.7,1901.6,5.25861]
[1742303405050,4.69163537,1901.7,1901.6,6.390179]
[1742303406376,4.78089897,1901.7,1901.6,5.25861]
[1742303407259,5.31619897,1901.7,1901.5,10.51779]
[1742303407477,5.31619897,1901.7,1901.6,5.25872]
[1742303408082,4.78089897,1901.7,1901.6,5.25872]
[1742303408764,8.25872,1901.6,1901.5,5.2589]
[1742303408958,7.952,1901.6,1901.5,5.2589]
[1742303409160,8.04145125,1901.6,1901.5,5.2589]
[1742303409863,8.04145125,1901.6,1901.4,5.2591]
[1742303410061,4.69163537,1901.5,1901.4,5.2591]
[1742303410505,4.78092104,1901.5,1901.4,5.2591]
[1742303412093,7.78092104,1901.5,1901.4,5.2591]
[1742303412296,7.78092104,1901.5,1901.4,6.387194]
[1742303412515,4.78092104,1901.5,1901.4,6.387194]
[1742303412696,0.08928567,1901.5,1901.4,7.22978156]
[1742303413012,4.69163537,1901.7,1901.6,5.25872]
[1742303413225,4.69163537,1901.7,1901.6,6.04872]
[1742303413507,4.69163537,1901.7,1901.6,7.17948]
[1742303414906,9.4179929,1902.0,1901.9,5.25789]
[1742303415219,14.10962827,1902.0,1901.9,5.25789]
[1742303416798,8.08962827,1902.0,1901.9,5.25789]
[1742303421196,8.17904644,1902.0,1901.9,5.25789]
[1742303421396,5.17904644,1902.0,1901.9,5.25789]
[1742303422502,4.78105354,1902.0,1901.9,6.309484]
[1742303422799,0.08941817,1902.0,1901.9,7.069184]
[1742303422972,6.96e-06,1902.0,1901.9,7.12176044]
[1742303423164,4.69163537,1902.2,1902.1,6.07704]
[1742303423364,9.64263537,1902.4,1902.3,5.25679]
[1742303424679,4.69163537,1902.4,1902.3,5.25679]
[1742303430572,4.77516733,1902.4,1902.3,5.25679]
[1742303432023,14.885286,1902.1,1901.9,5.25775]
[1742303432306,7.69163537,1902.0,1901.9,5.25787]
[1742303432707,8.16871073,1902.0,1901.8,5.25799]
[1742303432869,3.0,1901.9,1901.8,5.25799]
[1742303433207,0.5353,1901.8,1901.6,5.25859]
[1742303433407,7.69163537,1901.7,1901.6,5.25859]
[1742303433780,7.69163537,1901.7,1901.5,5.25896]
[1742303433982,0.1333253,1901.6,1901.5,5.25896]
[1742303435576,0.1333253,1901.6,1901.4,5.25917]
[1742303435773,4.69163537,1901.5,1901.4,5.25917]
[1742303436106,4.8246186,1901.5,1901.4,6.311031]
[1742303437796,7.8246186,1901.5,1901.4,5.25917]
[1742303438899,3.13298323,1901.5,1901.4,5.25917]
[1742303439074,3.13298323,1901.5,1901.4,40.25917]
[1742303439275,3.13298323,1901.5,1901.4,41.05857]
[1742303439704,0.13298323,1901.5,1901.4,41.05857]
[1742303439909,0.13298323,1901.5,1901.4,45.690371]
[1742303440410,4.69163537,1901.7,1901.6,5.25872]
[1742303443219,7.69163537,1901.7,1901.6,5.25872]
[1742303445027,8.25872,1901.6,1901.4,10.51845]
[1742303445316,3.0,1901.6,1901.5,5.259]
[1742303445863,3.0,1901.6,1901.4,5.25913]
[1742303446130,3.0,1901.7,1901.3,5.25952]
[1742303446293,4.69163537,1901.3,1901.2,5.25981]
[1742303447196,7.69163537,1901.3,1901.2,5.25981]
[1742303448216,3.0,1901.3,1901.2,5.25981]
[1742303448410,7.69163537,1901.3,1901.2,5.25981]
[1742303448612,3.0,1901.3,1901.2,5.25981]
[1742303448820,18.66163537,1901.5,1901.4,5.25928]
[1742303449525,7.69163537,1901.7,1901.6,5.25872]
[1742303449729,7.69163537,1901.7,1901.6,6.08192]
[1742303450996,3.0,1901.8,1901.7,5.25845]
[1742303451191,10.71163537,1901.9,1901.8,5.25817]
[1742303451398,7.69163537,1901.9,1901.8,5.25817]
[1742303451601,4.69163537,1901.9,1901.8,5.25817]
[1742303452305,4.69163537,1902.1,1901.9,5.25789]
[1742303452502,4.69163537,1902.1,1902.0,0.525789]
[1742303452998,4.69163537,1902.3,1902.2,5.25707]
[1742303453204,4.951,1902.4,1902.3,5.25679]
[1742303453473,13.04268756,1902.4,1902.3,5.25679]
[1742303453666,5.09168756,1902.4,1902.3,5.25679]
[1742303453937,17.397,1902.6,1902.3,5.25679]
[1742303453938,17.397,1902.6,1902.5,5.25624]
[1742303454535,20.397,1902.6,1902.5,5.25624]
[1742303454752,17.397,1902.6,1902.5,5.25624]
[1742303455058,22.08863537,1902.6,1902.5,5.25624]
[1742303455406,25.08863537,1902.6,1902.5,5.25624]
[1742303456653,3.0,1902.5,1902.3,5.25676]
[1742303456854,4.69163537,1902.4,1902.3,5.25676]
[1742303457273,9.64263537,1902.4,1902.2,5.25705]
[1742303457472,0.5353,1902.3,1902.1,5.25733]
[1742303457813,7.69163537,1902.2,1902.1,5.25733]
[1742303460185,7.69163537,1902.2,1902.0,5.25751]
[1742303460486,14.25317891,1902.2,1901.9,5.25786]
[1742303460790,7.69163537,1902.0,1901.9,5.25786]
[1742303461669,3.0,1902.0,1901.9,5.25786]
[1742303461869,7.69163537,1902.0,1901.9,5.25786]
[1742303463286,7.69163537,1902.0,1901.8,5.25799]
[1742303463587,7.69163537,1902.0,1901.7,10.51675]
[1742303463784,4.69163537,1901.8,1901.7,10.51675]
[1742303463988,4.69163537,1901.8,1901.7,5.25831]
[1742303464855,7.69163537,1901.8,1901.7,5.25831]
[1742303466256,4.69163537,1901.8,1901.7,5.25831]
[1742303466871,4.82501582,1901.8,1901.7,5.25831]
[1742303470095,0.13338045,1901.8,1901.7,6.310012]
[1742303470307,3.0,1902.0,1901.7,6.310012]
[1742303470308,7.69163537,1902.0,1901.9,5.25789]
[1742303470480,4.69163537,1902.0,1901.9,5.25789]
[1742303472302,6.02,1902.1,1902.0,5.25762]
[1742303472471,6.02,1902.1,1902.0,6.01482]
[1742303473113,0.39261818,1902.5,1902.4,5.25651]
[1742303473307,4.69163537,1902.5,1902.4,5.25651]
[1742303473552,5.09663038,1902.5,1902.4,5.25651]
[1742303474725,4.69163537,1902.5,1902.4,5.25651]
[1742303476912,4.69163537,1902.5,1902.4,6.03781]
[1742303477814,4.69163537,1902.5,1902.4,5.25651]
[1742303478018,5.07987038,1902.5,1902.4,5.25651]
[1742303481340,5.21323971,1902.5,1902.4,5.25651]
[1742303482044,0.13336933,1902.5,1902.4,5.25651]
[1742303482341,0.13336933,1902.5,1902.4,7.13494]
[1742303482642,6.37e-06,1902.5,1902.4,7.13494]
[1742303482813,6.6e-07,1902.5,1902.4,7.13494]
[1742303483014,4.69163537,1903.1,1903.0,5.25486]
[1742303483213,4.81181495,1903.1,1903.0,5.25486]
[1742303484246,4.81181495,1903.1,1903.0,5.19136]
[1742303484649,7.81181495,1903.1,1903.0,5.19136]
[1742303484844,0.12017958,1903.1,1903.0,5.19136]
[1742303485360,4.69163537,1903.2,1903.1,5.25458]
[1742303485553,7.69163537,1903.2,1903.1,5.25458]
[1742303485728,7.69163537,1903.2,1903.1,6.299174]
[1742303487448,3.0,1903.2,1903.1,6.299174]
[1742303490034,3.1209293,1903.2,1903.1,6.299174]
[1742303490754,7.81256467,1903.2,1903.1,6.299174]
[1742303491121,7.81256467,1903.2,1903.1,5.25458]
[1742303495061,8.34786467,1903.2,1903.1,5.25458]
[1742303495977,7.81256467,1903.2,1903.1,5.25458]
[1742303496945,7.81256467,1903.2,1903.0,5.19136]
[1742303497144,7.81256467,1903.2,1903.0,10.44607]
[1742303497351,7.81256467,1903.2,1903.1,5.25458]
[1742303498182,3.0,1903.1,1902.8,5.25532]
[1742303498382,0.5353,1903.0,1902.9,5.25509]
[1742303498679,0.65730961,1903.0,1902.9,5.25509]
[1742303499279,0.65730961,1903.0,1902.8,5.25532]
[1742303499473,7.69163537,1902.9,1902.8,5.25532]
[1742303499675,7.69163537,1902.9,1902.7,10.51112]
[1742303499887,7.81357886,1902.9,1902.7,10.51113]
[1742303500183,0.5353,1902.7,1902.5,5.25601]
[1742303500371,4.69163537,1902.6,1902.5,5.25601]
[1742303500569,7.81341354,1902.6,1902.5,5.25601]
[1742303501671,7.81341354,1902.6,1902.5,6.832902]
[1742303501878,7.81341354,1902.6,1902.5,7.657402]
[1742303503388,4.81341354,1902.6,1902.5,7.657402]
[1742303504190,0.12177817,1902.6,1902.5,7.657402]
[1742303504363,8.17e-06,1902.6,1902.5,7.657402]
[1742303504571,9.66063537,1903.1,1903.0,5.25486]
[1742303504986,4.69163537,1903.1,1903.0,5.25486]
[1742303507363,4.69163537,1903.1,1903.0,9.805848]
[1742303507566,5.08893479,1903.1,1903.0,9.805848]
[1742303508266,8.08893479,1903.1,1903.0,9.805848]
[1742303509692,8.08893479,1903.1,1903.0,10.600448]
[1742303509893,7.69163537,1903.1,1903.0,10.600448]
[1742303510103,4.69163537,1903.1,1903.0,6.04946]
[1742303510475,4.69163537,1903.1,1903.0,41.04946]
[1742303511171,4.69163537,1903.1,1903.0,40.25486]
[1742303512002,0.40504544,1903.2,1903.1,5.25458]
[1742303512171,4.69163537,1903.2,1903.1,5.25458]
[1742303512901,4.69163537,1903.2,1903.1,9.805524]
[1742303513281,3.39871926,1903.3,1903.2,5.2543]
[1742303513480,8.09035463,1903.3,1903.2,5.2543]
[1742303514576,8.09035463,1903.3,1903.1,15.059904]
[1742303514897,8.09035463,1903.3,1903.1,9.805324]
[1742303515101,8.09035463,1903.3,1903.1,5.25438]
[1742303515302,8.09035463,1903.3,1903.1,10.50882]
[1742303515805,8.09035463,1903.3,1903.1,10.50886]
[1742303516200,7.69163537,1903.3,1903.2,5.2543]
[1742303516410,7.69163537,1903.3,1903.2,6.0867]
[1742303516710,7.69163537,1903.3,1903.2,7.220808]
[1742303517421,7.69163537,1903.3,1903.2,42.220808]
[1742303518926,7.69163537,1903.3,1903.2,41.388408]
[1742303519083,7.69163537,1903.3,1903.2,40.2543]
[1742303519381,7.69163537,1903.3,1903.2,5.2543]
[1742303522282,7.69163537,1903.3,1903.1,40.25438]
[1742303522813,7.69163537,1903.3,1903.1,45.50887]
[1742303523005,7.69163537,1903.3,1903.2,5.2543]
[1742303523809,7.69163537,1903.3,1903.1,45.50884]
[1742303523983,7.69163537,1903.3,1903.1,44.884674]
[1742303524416,7.69163537,1903.3,1903.2,6.0433]
[1742303525622,10.971,1903.6,1903.2,6.0433]
[1742303525623,6.02,1903.6,1903.3,5.25378]
[1742303525832,4.69163537,1903.5,1903.3,5.25403]
[1742303526188,4.69163537,1903.5,1903.4,5.2537]
[1742303526718,5.08082656,1903.5,1903.3,5.25403]
[1742303526891,5.08082656,1903.5,1903.3,6.383762]
[1742303527838,5.08082656,1903.5,1903.4,5.25375]
[1742303528710,4.69163537,1903.5,1903.4,5.25375]
[1742303528890,4.69163537,1903.5,1903.3,11.637672]
[1742303529092,4.69163537,1903.5,1903.3,11.637572]
[1742303529520,4.69163537,1903.5,1903.4,35.0]
[1742303530020,4.69163537,1903.5,1903.3,6.383642]
[1742303530518,4.69163537,1903.5,1903.3,41.383642]
[1742303531221,4.69163537,1903.5,1903.3,36.129732]
[1742303532216,4.69163537,1903.5,1903.3,41.383742]
[1742303532889,4.69163537,1903.5,1903.4,5.25375]
[1742303533089,4.69163537,1903.5,1903.4,9.9174992]
[1742303533322,4.69163537,1903.5,1903.4,4.6637492]
[1742303534422,0.38840103,1903.6,1903.4,9.9174992]
[1742303534728,4.69163537,1903.6,1903.4,5.25362]
[1742303534902,4.69163537,1903.6,1903.5,35.0]
[1742303536524,5.07842224,1903.6,1903.5,35.0]
[1742303537791,5.07842224,1903.6,1903.3,6.383702]
[1742303538191,5.07842224,1903.6,1903.3,6.383552]
[1742303538411,5.07842224,1903.6,1903.4,0.6383552]
[1742303539125,3.0,1903.5,1903.2,0.789]
[1742303539328,5.07842224,1903.6,1903.2,0.789]
[1742303539329,4.69163537,1903.4,1903.2,0.789]
[1742303539558,4.69163537,1903.4,1903.2,40.25418]
[1742303539829,3.0,1903.4,1903.3,6.01863]
[1742303540123,5.07842224,1903.6,1903.3,15.899941]
[1742303540330,3.0,1903.5,1903.3,10.645911]
[1742303540729,3.0,1903.5,1903.3,10.645781]
[1742303540946,3.0,1903.5,1903.3,5.78550305]
[1742303541145,4.69163537,1903.4,1903.3,5.78550305]
[1742303541329,4.80620335,1903.4,1903.3,0.39362205]
[1742303541503,0.11456798,1903.4,1903.3,0.39362205]
[1742303541702,4.80620335,1903.4,1903.3,0.88574443]
[1742303542338,4.80620335,1903.4,1903.3,1.37787174]
[1742303543131,4.80620335,1903.4,1903.3,0.88574936]
[1742303543732,4.80620335,1903.4,1903.3,2.42314776]
[1742303544434,4.80620335,1903.4,1903.3,0.39362205]
[1742303544802,5.34150335,1903.4,1903.3,35.39362205]
[1742303545017,5.34150335,1903.4,1903.3,0.39362205]
[1742303546209,13.59525335,1903.4,1902.7,5.7112]
[1742303546401,4.69163537,1902.9,1902.7,0.7652]
[1742303546716,4.69163537,1902.9,1902.8,35.0]
[1742303546917,4.69163537,1902.9,1902.8,38.57652]
[1742303547436,4.69163537,1902.9,1902.8,39.06918967]
[1742303547627,4.69163537,1902.9,1902.8,39.955926]
[1742303550536,4.69163537,1902.9,1902.8,4.955926]
[1742303550842,4.69163537,1902.9,1902.8,0.39415679]
[1742303550843,7.69163537,1902.9,1902.8,0.39415679]
[1742303551265,14.24693537,1902.9,1902.8,0.39415679]
[1742303551425,24.44806537,1902.9,1902.8,0.39415679]
[1742303551626,8.25543,1902.8,1902.5,35.39415679]
[1742303551829,7.69163537,1902.6,1902.5,35.39415679]
[1742303552750,7.69163537,1902.6,1902.5,35.0]
[1742303553774,3.11339785,1902.6,1902.5,35.0]
[1742303553925,7.80503322,1902.6,1902.5,35.0]
[1742303555970,3.0,1902.5,1902.2,0.8255]
[1742303556275,4.69163537,1902.6,1902.2,0.8255]
[1742303556476,4.69163537,1902.6,1902.4,35.0]
[1742303559174,4.69163537,1902.6,1902.4,38.5]
[1742303560506,4.69163537,1902.6,1902.4,3.5]
[1742303560701,4.69163537,1902.6,1902.2,6.08255]
[1742303560995,4.69163537,1902.6,1902.3,35.0]
[1742303561154,0.11339785,1902.5,1902.3,35.0]
[1742303562293,7.69163537,1902.4,1902.3,35.0]
[1742303562502,7.80455833,1902.4,1902.3,35.0]
[1742303562688,7.80455833,1902.4,1902.3,38.58255]
[1742303564513,7.80455833,1902.4,1902.3,35.0]
[1742303567812,3.11292296,1902.4,1902.3,35.0]
[1742303568316,7.80455833,1902.4,1902.3,35.0]
[1742303576624,7.80455833,1902.4,1902.2,0.8255]
[1742303576922,7.80455833,1902.4,1902.0,0.7724]
[1742303577123,7.69163537,1902.2,1902.1,35.0]
[1742303577340,3.0,1902.0,1901.7,0.7724]
[1742303577515,7.69163537,1901.8,1901.7,0.7724]
[1742303577702,7.69163537,1901.8,1901.7,35.7724]
[1742303578122,7.80368564,1901.8,1901.7,36.26523876]
[1742303578412,7.80368564,1901.8,1901.7,35.49283876]
[1742303579403,7.80368564,1901.8,1901.7,35.0]
[1742303579626,13.8957542,1901.8,1901.7,0.39417525]
[1742303580124,8.6375842,1901.8,1901.7,0.39417525]
[1742303580328,8.06941478,1901.8,1901.7,0.39417525]
[1742303580996,23.89927526,1901.8,1901.7,0.05897525]
[1742303581197,8.79402,1901.6,1901.5,0.00175079]
[1742303581397,3.0,1901.2,1900.9,1.55455245]
[1742303581622,4.69163537,1901.0,1900.9,0.7663]
[1742303581824,7.69163537,1901.0,1900.9,35.0]
[1742303582119,7.80281228,1901.0,1900.9,35.0]
[1742303582521,3.11117691,1901.0,1900.9,35.0]
[1742303582725,7.80281228,1901.0,1900.9,35.0]
[1742303583204,7.80281228,1901.0,1900.9,38.57906]
[1742303585012,7.80281228,1901.0,1900.9,35.0]
[1742303589643,8.33811228,1901.0,1900.6,0.8241]
[1742303589946,4.69163537,1900.7,1900.6,0.8241]
[1742303590555,4.80104327,1900.7,1900.6,0.8241]
[1742303591259,4.80104327,1900.7,1900.4,0.763]
[1742303591425,4.80104327,1900.7,1900.4,7.12245]
[1742303591631,7.80104327,1900.7,1900.6,0.763]
[1742303592645,7.80104327,1900.7,1900.6,6.02449]
[1742303594224,0.1094079,1900.7,1900.6,6.05399]
[1742303594444,3.0,1901.0,1900.9,0.7925]
[1742303597018,3.0,1901.0,1900.9,6.05316]
[1742303597949,3.0,1901.0,1900.9,6.67209047]
[1742303598449,3.0,1901.4,1900.9,6.67209047]
[1742303598617,3.0,1901.0,1900.9,6.05316]
[1742303600245,0.5353,1901.3,1900.7,6.03966]
[1742303600246,0.39102299,1901.2,1900.7,6.03966]
[1742303600468,7.69163537,1900.8,1900.7,6.03966]
[1742303601171,7.80089942,1900.8,1900.7,6.03966]
[1742303602342,7.80089942,1900.8,1900.7,0.7787]
[1742303602848,7.80089942,1900.8,1900.5,6.41132917]
[1742303602849,4.80089942,1900.8,1900.5,6.41132917]
[1742303603040,7.69163537,1900.6,1900.5,6.41132917]
[1742303603419,7.80062282,1900.6,1900.5,6.41132917]
[1742303603620,7.80062282,1900.6,1900.5,8.18351609]
[1742303604056,7.80062282,1900.6,1900.5,7.79141692]
[1742303604419,7.80062282,1900.6,1900.4,11.62143]
[1742303604619,7.80062282,1900.6,1900.4,6.35941]
[1742303604926,7.80062282,1900.6,1900.4,11.62133]
[1742303605124,7.80062282,1900.6,1900.4,6.35941]
[1742303605423,7.80062282,1900.6,1900.5,5.26177]
[1742303606724,7.80062282,1900.6,1900.5,5.75307094]
[1742303608057,7.80062282,1900.6,1900.5,6.1470722]
[1742303608854,3.10898745,1900.6,1900.5,8.26366062]
[1742303609625,3.10898745,1900.6,1900.5,8.89406264]
[1742303611122,7.80062282,1900.6,1900.5,7.58037422]
[1742303611546,7.80062282,1900.6,1900.5,6.77747422]
[1742303612882,7.80062282,1900.6,1900.5,1.51570422]
[1742303613342,7.80062282,1900.6,1900.5,6.77747422]
[1742303614080,7.80062282,1900.6,1900.5,1.51570422]
[1742303618274,7.80062282,1900.6,1900.5,0.8853022]
[1742303618747,8.33592282,1900.6,1900.5,0.8853022]
[1742303622005,5.33592282,1900.6,1900.5,0.8853022]
[1742303622521,5.33592282,1900.6,1900.4,5.26202]
[1742303622817,5.33592282,1900.6,1900.4,10.52393]
[1742303622818,4.80062282,1900.6,1900.4,10.52393]
[1742303623026,4.80062282,1900.6,1900.4,11.33533]
[1742303623319,7.80062282,1900.6,1900.5,5.26177]
[1742303623916,3.0,1900.5,1900.4,11.33525]
[1742303624222,3.10855584,1900.5,1900.4,11.33525]
[1742303624729,3.10855584,1900.5,1900.4,11.82843318]
[1742303624906,3.10855584,1900.5,1900.4,6.96102518]
[1742303625108,9.68564496,1900.5,1900.4,0.88771518]
[1742303626117,3.0,1900.3,1900.1,0.49318318]
[1742303626322,7.69163537,1900.3,1900.1,0.49318318]
[1742303626727,0.10855584,1900.2,1900.1,0.49318318]
[1742303627113,0.10855584,1900.2,1900.1,5.75606318]
[1742303627332,0.10855584,1900.2,1900.1,5.26288]
[1742303627823,0.10855584,1900.2,1900.0,5.26299]
[1742303628025,3.0,1900.0,1899.9,5.26322]
[1742303628403,3.10802449,1900.0,1899.8,1.4571616]
[1742303628725,7.69163537,1899.9,1899.8,5.8950616]
[1742303629030,7.69163537,1899.9,1899.8,6.38797469]
[1742303629218,7.79965986,1899.9,1899.8,6.38797469]
[1742303629949,7.79965986,1899.9,1899.8,1.12427469]
[1742303630301,7.79965986,1899.9,1899.8,0.88716818]
[1742303631296,3.88799048,1899.9,1899.8,35.39425509]
[1742303631500,4.42329048,1899.9,1899.8,35.39425509]
[1742303631699,3.10802449,1899.9,1899.8,40.65796509]
[1742303631900,7.79965986,1899.9,1899.8,40.26371]
[1742303636007,3.10802449,1899.9,1899.8,40.26371]
[1742303637233,7.79965986,1899.9,1899.8,40.26371]
[1742303638003,7.79965986,1899.9,1899.8,40.16371]
[1742303640238,7.79965986,1899.9,1899.8,40.06371]
[1742303645245,7.79965986,1899.9,1899.3,0.7903]
[1742303645246,3.0,1899.8,1899.3,0.7903]
[1742303645445,7.69163537,1899.4,1899.3,10.52991]
[1742303645630,7.69163537,1899.4,1899.3,45.52991]
[1742303645835,3.0,1899.4,1899.3,46.32021]
[1742303646036,3.10689508,1899.4,1899.3,50.952231]
[1742303646418,3.10689508,1899.4,1899.3,51.44458542]
[1742303646858,7.79853045,1899.4,1899.3,51.44458542]
[1742303647142,7.79853045,1899.4,1899.3,51.83846454]
[1742303647637,7.79853045,1899.4,1899.3,51.04816454]
[1742303647838,7.79853045,1899.4,1899.3,50.65428542]
[1742303648347,7.79853045,1899.4,1899.3,50.161931]
[1742303648717,3.10689508,1899.4,1899.3,50.161931]
[1742303649315,7.79853045,1899.4,1899.3,50.161931]
[1742303649647,7.79853045,1899.4,1899.3,45.52991]
[1742303649847,7.79853045,1899.4,1899.3,45.92378324]
[1742303650946,3.10689508,1899.4,1899.3,46.67948324]
[1742303651349,3.0,1899.4,1899.3,46.67948324]
[1742303651750,3.10654056,1899.4,1899.3,46.28561]
[1742303651950,3.10654056,1899.4,1899.3,51.409471]
[1742303652681,3.10654056,1899.4,1899.3,51.90193007]
[1742303652848,3.10654056,1899.4,1899.3,52.53230865]
[1742303653353,3.10654056,1899.4,1899.3,47.40844765]
[1742303654059,3.10654056,1899.4,1899.3,46.65274765]
[1742303654354,3.10654056,1899.4,1899.3,35.8867281]
[1742303654541,7.79817593,1899.4,1899.3,41.1518181]
[1742303655265,7.79817593,1899.4,1899.3,40.65935903]
[1742303655423,8.33347593,1899.4,1899.3,40.26509]
[1742303655623,9.16682352,1899.4,1899.0,6.09429]
[1742303655825,4.69163537,1899.1,1899.0,5.26589]
[1742303656038,4.79755547,1899.1,1899.0,5.26589]
[1742303656255,7.79755547,1899.1,1899.0,35.0]
[1742303656646,7.79755547,1899.1,1899.0,35.39452536]
[1742303656647,8.33285547,1899.1,1899.0,35.39452536]
[1742303657163,8.33285547,1899.1,1899.0,0.39452536]
[1742303657363,9.16614102,1899.1,1899.0,0.39452536]
[1742303657735,4.47450565,1899.1,1899.0,5.66044536]
[1742303657936,3.6412201,1899.1,1899.0,5.26592]
[1742303658261,3.1059201,1899.1,1899.0,5.26592]
[1742303668575,7.79755547,1899.1,1899.0,5.26592]
[1742303672983,7.79755547,1899.1,1899.0,5.65983336]
[1742303680989,7.79755547,1899.1,1899.0,6.29029573]
[1742303685391,9.11261102,1899.1,1899.0,6.29029573]
[1742303685601,8.33285547,1899.1,1899.0,6.29029573]
[1742303685782,8.33285547,1899.1,1899.0,5.65983336]
[1742303686088,3.1059201,1899.1,1899.0,5.65983336]
[1742303687455,3.1059201,1899.1,1899.0,10.61583336]
[1742303687876,3.0,1899.1,1899.0,10.61583336]
[1742303688061,3.10534379,1899.1,1899.0,12.8112347]
[1742303688262,3.10534379,1899.1,1899.0,13.44404789]
[1742303691676,0.10534379,1899.1,1899.0,13.44404789]
[1742303691876,3.0,1899.3,1899.2,5.26537]
[1742303692065,3.10534379,1899.3,1899.2,5.26537]
[1742303692694,3.10534379,1899.3,1899.1,10.53105]
[1742303692899,3.10534379,1899.3,1899.1,5.26552]
[1742303693203,3.10534379,1899.3,1899.2,5.26537]
[1742303693869,3.10534379,1899.3,1899.2,6.29209655]
[1742303693870,0.10534379,1899.3,1899.2,6.29209655]
[1742303694066,3.0,1899.3,1899.2,6.29209655]
[1742303694262,3.10545465,1899.3,1899.2,6.29209655]
[1742303696478,0.10545465,1899.3,1899.2,6.29209655]
[1742303696679,3.0,1899.4,1899.2,6.29209655]
[1742303696997,4.79709002,1899.3,1899.2,1.02672655]
[1742303697570,3.0,1899.2,1899.1,5.26547]
[1742303698069,3.10545465,1899.2,1899.1,5.26547]
[1742303698298,3.10545465,1899.2,1898.8,0.7822]
[1742303698505,3.10545465,1899.2,1899.1,1.02816914]
[1742303698684,4.47399365,1899.2,1899.1,1.02816914]
[1742303699505,4.47399365,1899.2,1898.9,0.63271947]
[1742303699711,5.33239002,1899.2,1899.0,5.26588]
[1742303700371,4.79709002,1899.2,1898.9,5.89891947]
[1742303700693,4.79709002,1899.2,1898.9,5.2662]
[1742303701372,4.79709002,1899.2,1898.8,5.26644]
[1742303701582,3.0,1898.9,1898.8,5.26644]
[1742303701797,3.0,1898.9,1898.8,6.319753]
[1742303702004,3.10531054,1898.9,1898.8,6.319753]
[1742303703315,3.10531054,1898.9,1898.8,1.02789469]
[1742303704012,3.10531054,1898.9,1898.8,6.29437469]
[1742303705720,0.10531054,1898.9,1898.8,6.34703458]
[1742303705921,0.10531054,1898.9,1898.8,7.05197469]
[1742303706221,10.71163537,1899.2,1899.0,5.26577]
[1742303706388,3.0,1899.1,1899.0,11.584764]
[1742303706588,3.0,1899.1,1899.0,6.318964]
[1742303707320,3.0,1899.1,1899.0,7.34685869]
[1742303707717,3.0,1899.1,1899.0,2.08108869]
[1742303707921,3.0,1899.1,1899.0,1.02789469]
[1742303710317,3.5353,1899.1,1899.0,1.02789469]
[1742303710838,3.5353,1899.1,1899.0,0.39534411]
[1742303711401,8.80095,1899.1,1899.0,0.39534411]
[1742303711725,14.82095,1899.1,1899.0,0.39534411]
[1742303712722,5.80151,1898.9,1898.7,0.39534411]
[1742303712887,7.69163537,1898.8,1898.7,0.39534411]
[1742303713297,12.95811537,1898.8,1898.7,0.39534411]
[1742303713910,12.95811537,1898.8,1898.4,0.63255058]
[1742303713911,7.69163537,1898.8,1898.4,0.63255058]
[1742303714109,4.69163537,1898.6,1898.4,0.63255058]
[1742303714309,4.69163537,1898.6,1898.4,1.27426564]
[1742303714502,4.69163537,1898.8,1898.6,0.7936]
[1742303714709,7.69163537,1899.0,1898.6,6.06056]
[1742303714919,7.69163537,1899.0,1898.7,5.26659]
[1742303715224,7.69163537,1899.0,1898.7,10.22359]
[1742303715421,7.69163537,1899.0,1898.7,11.325309]
[1742303715736,7.69163537,1899.0,1898.7,6.058719]
[1742303716026,4.69163537,1898.8,1898.7,4.957]
[1742303716321,7.69163537,1898.8,1898.6,0.63255058]
[1742303717596,7.69163537,1898.8,1898.4,11.65683058]
[1742303717788,7.69163537,1898.8,1898.4,13.28604558]
[1742303718321,7.69163537,1898.8,1898.4,8.01846558]
[1742303719025,4.69163537,1898.6,1898.4,0.63255058]
[1742303719225,7.69163537,1898.6,1898.5,0.3946172]
[1742303719588,8.22693537,1898.6,1898.5,0.3946172]
[1742303720104,3.0,1898.6,1898.5,6.4783272]
[1742303720305,3.0,1898.6,1898.5,7.32154478]
[1742303721029,3.0,1899.0,1898.7,5.26654]
[1742303721204,3.0,1899.0,1898.9,0.7941]
[1742303721824,3.0,1899.0,1898.8,0.39447689]
[1742303722226,7.69163537,1898.9,1898.8,0.39447689]
[1742303722409,3.0,1898.9,1898.8,0.39447689]
[1742303722928,3.0,1898.9,1898.8,1.14525369]
[1742303723116,3.0,1898.9,1898.8,6.41173369]
[1742303723316,2.5333,1899.6,1899.1,0.7833]
[1742303723520,4.69163537,1899.5,1899.1,0.7833]
[1742303723723,3.0,1899.4,1899.1,0.7833]
[1742303724131,4.69163537,1899.5,1899.1,0.7833]
[1742303724336,3.0,1899.4,1899.1,7.15135]
[1742303724569,3.0,1899.4,1899.1,7.15145]
[1742303725065,4.69163537,1899.3,1899.1,1.88582]
[1742303725233,3.0,1899.2,1899.0,4.976]
[1742303725434,7.69163537,1899.1,1899.0,4.976]
[1742303725664,7.69163537,1899.1,1899.0,5.60855058]
[1742303725878,7.69163537,1899.1,1899.0,0.63255058]
[1742303726164,3.0,1899.1,1899.0,0.63255058]
[1742303726367,7.69163537,1899.1,1899.0,0.63255058]
[1742303727086,7.69163537,1899.1,1899.0,0.39463539]
[1742303727437,3.0,1899.1,1899.0,1.04570248]
[1742303727838,3.0,1899.1,1899.0,0.39463539]
[1742303728247,3.5353,1899.1,1899.0,0.39463539]
[1742303729372,8.80095,1899.1,1899.0,0.39463539]
[1742303730073,3.0,1899.0,1898.6,0.63255058]
[1742303730256,3.0,1898.8,1898.6,0.63255058]
[1742303730574,3.0,1898.8,1898.6,1.27038564]
[1742303731170,3.5353,1899.1,1898.7,0.39477616]
[1742303731372,7.69163537,1898.8,1898.7,0.39477616]
[1742303732144,7.69163537,1898.8,1898.4,16.14548058]
[1742303732470,4.69163537,1899.0,1898.6,6.03053]